[Event "1st 4NCL International U2050"]
[Site "Telford"]
[Date "2018.11.03"]
[Round "7"]
[White "Stubbs, Oliver"]
[Black "Zdanowski, Adrian"]
[Result "0-1"]
[ECO "B07"]
[WhiteElo "1672"]
[BlackElo "1845"]
[Annotator "NA"]
[PlyCount "132"]
[EventDate "2018.10.31"]
[EventType "swiss"]
[EventCountry "GBR"]
[SourceTitle "playchess.com"]
[Source "ChessBase"]
[SourceQuality "1"]
[TimeControl "5400+30"]

1. d4 {[%emt 0:00:00]} Nf6 {[%emt 0:00:00]} 2. Bf4 {[%emt 0:00:00]} d6 {[%emt 0:00:17]} 3. Nc3 {[%emt 0:00:45]} g6 {[%emt 0:00:36]} 4. e4 {[%emt 0:00:08]} a6 {[%emt 0:01:00] B07: Pirc-Ufimzew-Verteidigung} (4... c6 5. Nf3 Bg7 6. Qd2 O-O 7. h3 Qa5 8. e5 dxe5 9. dxe5 Nd5 10. Nxd5 Qxd2+ 11. Bxd2 cxd5 12. O-O-O Nc6 13. Bc3 e6 14. h4 h6 {0-1 (79) Vachier Lagrave,M (2779)-Carlsen,M (2842) Biel 2018}) 5. Qd2 {[%emt 0:01:04]} b5 {[%emt 0:00:48]} 6. Bd3 {[%emt 0:00:09]} Bb7 {[%emt 0:00:26]} 7. f3 $146 {[%emt 0:03:33]} ({Vorgänger:} 7. Nf3 b4 8. Ne2 Bxe4 9. Bxe4 Nxe4 10. Qxb4 Nd7 11. Qa4 Bg7 12. c3 {½-½ (76) Muench,I (2230)-Scherer,R (2230) Germany 1997}) 7... Nbd7 {[%emt 0:00:38]} 8. O-O-O {[%emt 0:01:49]} c5 {[%emt 0:01:02]} 9. dxc5 {[%emt 0:00:23]} Nxc5 {[%emt 0:00:33]} 10. Nge2 {[%emt 0:00:48]} Qa5 {[%emt 0:01:10]} 11. e5 {[%emt 0:02:11]} dxe5 {[%emt 0:04:02]} 12. Bxe5 {[%emt 0:01:09]} Bg7 {[%emt 0:01:00]} 13. Nb1 {[%emt 0:13:56]} b4 {[%emt 0:01:54]} 14. f4 {[%emt 0:16:13]} O-O {[%emt 0:00:51]} 15. Nd4 {[%emt 0:02:11]} Rfd8 {[%emt 0:02:32]} ({Weaker is} 15... Qxa2 16. Qxb4 Nxd3+ 17. Rxd3 $17) (15... Bh6 $142 16. Rhe1 Ng4) 16. Nb3 {[%emt 0:05:29]} Nxd3+ {[%emt 0:01:50]} 17. Qxd3 {[%emt 0:00:08]} Qb6 {[%emt 0:03:18]} 18. Qe2 {[%emt 0:01:21]} a5 {[%emt 0:01:09]} 19. Rhe1 {[%emt 0:02:56]} e6 {[%emt 0:01:51]} 20. g3 {[%emt 0:01:17]} Bd5 {[%emt 0:01:50]} 21. N3d2 {[%emt 0:08:11]} Bxa2 {[%emt 0:00:59]} 22. Ne4 {[%emt 0:00:15]} Nxe4 {[%emt 0:01:01]} 23. Rxd8+ {[%emt 0:00:51]} Rxd8 {[%emt 0:01:08]} 24. Qxe4 {[%emt 0:00:13]} Bxe5 {[%emt 0:03:07]} 25. Qxe5 {[%emt 0:00:42]} a4 {[%emt 0:00:48]} 26. Nd2 {[%emt 0:02:20]} Qf2 {[%emt 0:03:03]} 27. Re2 {[%emt 0:04:22]} (27. Qe2 $17 {war angesagt.} Qb6 28. Ne4) 27... Qg1+ {[%emt 0:00:12]} 28. Re1 {[%emt 0:00:08]} Qxh2 {[%emt 0:00:09]} 29. Ne4 {[%emt 0:00:15]} b3 {[%emt 0:04:44]} 30. Qc7 {[%emt 0:11:22]} Qxc2+ {[%emt 0:01:43]} 31. Qxc2 {[%emt 0:00:08]} bxc2 {[%emt 0:00:04]} 32. Kxc2 {[%emt 0:00:38]} Bb3+ {[%emt 0:00:41]} 33. Kc1 {[%emt 0:04:44]} (33. Kc3 {only move.}) 33... Kg7 {[%emt 0:00:09]} 34. Nd2 {[%emt 0:02:53]} Rd3 {[%emt 0:01:40]} 35. g4 {[%emt 0:00:00]} h6 $19 {[%emt 0:00:31]} 36. Rg1 {[%emt 0:00:00]} Rd4 {[%emt 0:02:06]} 37. Nxb3 {[%emt 0:00:00]} axb3 {[%emt 0:00:02]} 38. Rf1 {[%emt 0:00:55]} h5 {[%emt 0:00:38]} 39. gxh5 {[%emt 0:00:06]} gxh5 {[%emt 0:00:08]} 40. Rf3 {[%emt 0:00:05]} Rb4 {[%emt 0:03:12]} 41. Kd2 {[%emt 0:00:14]} Kf6 {[%emt 0:01:05]} 42. Rh3 {[%emt 0:01:46]} Kg6 {[%emt 0:01:06]} 43. Kc3 {[%emt 0:00:16]} Rxf4 {[%emt 0:01:28]} 44. Kxb3 {[%emt 0:00:09]} Kg5 {[%emt 0:00:38]} 45. Kc3 {[%emt 0:00:35]} Kg4 {[%emt 0:00:24]} 46. Rh1 {[%emt 0:00:10]} Rf5 {[%emt 0:05:14]} 47. b4 {[%emt 0:00:08]} h4 {[%emt 0:00:26]} 48. Rg1+ {[%emt 0:02:12]} Kf4 {[%emt 0:01:37]} 49. Rf1+ {[%emt 0:00:50]} Ke3 {[%emt 0:00:04]} 50. Rh1 {[%emt 0:00:43]} Rh5 {[%emt 0:00:39]} 51. Kc4 {[%emt 0:00:13]} Kf2 {[%emt 0:00:38]} 52. b5 {[%emt 0:00:20]} Kg2 {[%emt 0:01:27]} 53. Ra1 {[%emt 0:00:32]} Rh8 {[%emt 0:01:08]} 54. Ra2+ {[%emt 0:00:07]} Kg3 {[%emt 0:00:09]} 55. Ra3+ {[%emt 0:00:03]} Kg4 {[%emt 0:00:20]} 56. b6 {[%emt 0:00:23]} f5 {[%emt 0:00:33]} 57. b7 {[%emt 0:00:37]} Rb8 {[%emt 0:00:10]} 58. Rb3 {[%emt 0:00:28]} h3 {[%emt 0:00:04]} 59. Rb2 {[%emt 0:01:01]} Kg3 {[%emt 0:00:17]} 60. Rb3+ {[%emt 0:00:03]} Kg4 {[%emt 0:00:12]} 61. Rb2 {[%emt 0:00:04]} f4 {[%emt 0:00:27]} 62. Kc5 {[%emt 0:00:26]} Kg3 {[%emt 0:00:02]} 63. Kc6 {[%emt 0:00:10]} h2 {[%emt 0:00:42]} 64. Rb1 {[%emt 0:00:09]} f3 {[%emt 0:00:25]} 65. Kc7 {[%emt 0:00:05]} Rxb7+ {[%emt 0:00:18]} 66. Kxb7 {[%emt 0:00:08]} Kg2 {[%emt 0:00:06]} 0-1

[Event "1st 4NCL International U2050"]
[Site "Telford"]
[Date "2018.11.03"]
[Round "7"]
[White "Chen, Daniel Xingyu"]
[Black "Wynarczyk, Raymond"]
[Result "1/2-1/2"]
[ECO "C41"]
[WhiteElo "1258"]
[BlackElo "1908"]
[Annotator "NA"]
[PlyCount "62"]
[EventDate "2018.10.31"]
[EventType "swiss"]
[EventCountry "GBR"]
[SourceTitle "playchess.com"]
[Source "ChessBase"]
[SourceQuality "1"]
[TimeControl "5400+30"]

1. e4 {[%emt 0:00:00]} e5 {[%emt 0:00:00]} 2. Nf3 {[%emt 0:00:00]} d6 {[%emt 0:00:00]} 3. d4 {[%emt 0:00:05]} exd4 {[%emt 0:00:00]} 4. Nxd4 {[%emt 0:00:18]} Nf6 {[%emt 0:00:05]} 5. Nc3 {[%emt 0:00:18]} Be7 {[%emt 0:00:08]} 6. Bc4 {[%emt 0:01:29]} O-O {[%emt 0:01:20]} 7. O-O {[%emt 0:01:21]} a6 {[%emt 0:02:47] LiveBook: 54 Games} (7... Nxe4 $5 8. Nxe4 d5 $14) 8. f4 {[%emt 0:04:10] C41: Philidor Defence} (8. Bf4 $14) (8. a4 Re8 9. Re1 h6 10. Bf4 Bf8 11. Qd2 Nbd7 12. Rad1 Ne5 13. Bb3 Ng6 14. Bg3 Nh5 15. Nf5 Nxg3 16. hxg3 {1-0 (78) Zatonskih,A (2452)-Kovanova,B (2367) Riadh 2017}) 8... b5 {[%emt 0:02:58]} 9. Bd5 {[%emt 0:05:23]} Nxd5 {[%emt 0:02:58]} 10. Nxd5 {[%emt 0:01:18]} c5 {[%emt 0:02:01]} 11. Nf3 {[%emt 0:04:29]} Bb7 {[%emt 0:06:51]} 12. Be3 $146 {[%emt 0:02:57]} ({Predecessor:} 12. b3 Bxd5 13. Qxd5 Nd7 14. Bb2 Nf6 15. Qd3 d5 16. exd5 Qxd5 {0-1 (37) Kulakov,Y-Rehberg,R Ueberlingen 2000}) 12... Nd7 {[%emt 0:01:49]} 13. Bf2 {[%emt 0:04:59]} Bxd5 {[%emt 0:02:27]} 14. Qxd5 {[%emt 0:02:14]} Nf6 {[%emt 0:01:51]} 15. Qd3 {[%emt 0:00:31]} Ng4 {[%emt 0:03:03]} (15... c4 $5 {[%cal Rc4d3]} 16. Qe2 d5 $11) 16. Rad1 {[%emt 0:01:26]} Qb6 {[%emt 0:03:27]} 17. h3 {[%emt 0:02:07]} Nxf2 {[%emt 0:00:42]} 18. Rxf2 {[%emt 0:00:10]} Rfd8 {[%emt 0:06:38]} 19. Kh1 {[%emt 0:01:32]} Bf6 {[%emt 0:01:24]} 20. c3 {[%emt 0:00:48]} Rac8 {[%emt 0:03:30]} 21. Re2 {[%emt 0:01:45]} a5 {[%emt 0:04:15]} 22. Qd5 {[%emt 0:00:56]} b4 {[%emt 0:04:09]} 23. c4 {[%emt 0:01:39]} a4 {[%emt 0:06:32]} 24. Ng5 {[%emt 0:03:08]} Qc7 {[%emt 0:05:11]} 25. Qf5 {[%emt 0:01:02]} Bxg5 {[%emt 0:07:15]} 26. Qxg5 {[%emt 0:00:22]} f6 {[%emt 0:02:07]} 27. Qd5+ {[%emt 0:00:22]} Qf7 {[%emt 0:00:46]} 28. Kh2 {[%emt 0:02:25]} Qxd5 {[%emt 0:02:34]} 29. exd5 {[%emt 0:00:44]} Re8 {[%emt 0:02:06]} 30. Rde1 {[%emt 0:00:48]} Kf7 {[%emt 0:00:48]} 31. Kg3 {[%emt 0:00:27]} Rxe2 $11 {[%emt 0:03:25]} 1/2-1/2

[Event "1st 4NCL International U2050"]
[Site "Telford"]
[Date "2018.11.04"]
[Round "8"]
[White "Whitehead, Mark A"]
[Black "Stubbs, Oliver"]
[Result "1/2-1/2"]
[ECO "C00"]
[WhiteElo "1922"]
[BlackElo "1672"]
[Annotator "NA"]
[PlyCount "111"]
[EventDate "2018.10.31"]
[EventType "swiss"]
[EventCountry "GBR"]
[SourceTitle "playchess.com"]
[Source "ChessBase"]
[SourceQuality "1"]
[TimeControl "5400+30"]

1. e4 {[%emt 0:00:00]} e6 {[%emt 0:00:00]} 2. Qe2 {[%emt 0:00:00]} c5 {[%emt 0:00:00]} 3. g3 {[%emt 0:00:03]} d5 {[%emt 0:01:15]} 4. exd5 {[%emt 0:08:11]} Qxd5 {[%emt 0:00:08]} 5. Nf3 {[%emt 0:00:05]} Nc6 {[%emt 0:07:21]} 6. Nc3 {[%emt 0:01:14]} Qd8 {[%emt 0:07:45]} 7. Bg2 {[%emt 0:03:37]} Nf6 {[%emt 0:01:00]} 8. O-O {[%emt 0:02:27]} Be7 {[%emt 0:01:32]} 9. d3 {[%emt 0:02:12]} O-O {[%emt 0:00:15]} 10. Ne4 {[%emt 0:06:08]} e5 {[%emt 0:08:25]} 11. c3 {[%emt 0:09:04]} Nxe4 {[%emt 0:04:16]} 12. dxe4 {[%emt 0:00:58]} Be6 {[%emt 0:01:58]} 13. Be3 {[%emt 0:07:38]} Qc7 {[%emt 0:01:33]} 14. Rfd1 {[%emt 0:00:42]} Rfd8 {[%emt 0:00:41]} 15. b3 {[%emt 0:00:20]} Rac8 {[%emt 0:04:15]} 16. Rxd8+ {[%emt 0:01:41]} Rxd8 {[%emt 0:00:52]} 17. Rd1 {[%emt 0:00:08]} Rxd1+ {[%emt 0:01:05]} 18. Qxd1 {[%emt 0:00:08]} Qa5 {[%emt 0:00:10]} 19. Qc2 {[%emt 0:01:19]} h6 {[%emt 0:07:05]} 20. Ne1 {[%emt 0:03:11]} Nd4 {[%emt 0:06:10]} 21. cxd4 {[%emt 0:24:46]} Qxe1+ {[%emt 0:00:12]} 22. Bf1 {[%emt 0:00:07]} Bh3 {[%emt 0:02:03]} 23. Qe2 {[%emt 0:00:16]} Qxf1+ {[%emt 0:00:18]} 24. Qxf1 {[%emt 0:00:08]} Bxf1 {[%emt 0:00:04]} 25. Kxf1 {[%emt 0:00:10]} cxd4 {[%emt 0:00:06]} 26. Bd2 {[%emt 0:00:18]} f6 {[%emt 0:02:36]} 27. Ke2 {[%emt 0:00:57]} Kf7 {[%emt 0:00:10]} 28. Kd3 {[%emt 0:00:08]} Ke6 {[%emt 0:01:14]} 29. Kc4 {[%emt 0:00:17]} Kd6 {[%emt 0:01:42]} 30. f4 {[%emt 0:01:33]} Kc6 {[%emt 0:00:45]} 31. f5 {[%emt 0:00:08]} b5+ {[%emt 0:00:37]} 32. Kd3 {[%emt 0:00:09]} h5 {[%emt 0:03:39]} 33. h3 {[%emt 0:02:54]} Kb6 {[%emt 0:10:44]} 34. b4 {[%emt 0:02:43]} Kc6 {[%emt 0:00:49]} 35. g4 {[%emt 0:01:50]} hxg4 {[%emt 0:00:10]} 36. hxg4 {[%emt 0:00:05]} Kd7 {[%emt 0:00:20]} 37. Ke2 {[%emt 0:00:58]} Ke8 {[%emt 0:00:13]} 38. a3 {[%emt 0:01:01]} Kf7 {[%emt 0:00:43]} 39. Be1 {[%emt 0:01:43]} Bd8 {[%emt 0:00:39]} 40. Bd2 {[%emt 0:00:22]} g6 {[%emt 0:01:07]} 41. Kf3 {[%emt 0:00:47]} gxf5 {[%emt 0:00:51]} 42. gxf5 {[%emt 0:00:08]} Kg7 {[%emt 0:01:14]} 43. Ke2 {[%emt 0:01:31]} Kh7 {[%emt 0:00:38]} 44. Kf3 {[%emt 0:00:10]} Be7 {[%emt 0:00:40]} 45. Kg4 {[%emt 0:00:11]} Bf8 {[%emt 0:00:40]} 46. Kh5 {[%emt 0:00:13]} a6 {[%emt 0:00:27]} 47. Bc1 {[%emt 0:00:26]} d3 {[%emt 0:02:44]} 48. Be3 {[%emt 0:00:51]} a5 {[%emt 0:03:56]} 49. Bd2 {[%emt 0:01:17]} axb4 {[%emt 0:00:05]} 50. axb4 {[%emt 0:00:11]} Bd6 {[%emt 0:03:42]} 51. Kg4 {[%emt 0:00:27]} Be7 {[%emt 0:01:13]} 52. Kh5 {[%emt 0:00:25]} Bd8 {[%emt 0:00:35]} 53. Kg4 {[%emt 0:00:19]} Bb6 {[%emt 0:00:46]} 54. Kf3 {[%emt 0:00:39]} Bd4 {[%emt 0:00:44]} 55. Kg3 {[%emt 0:01:47]} Bg1 {[%emt 0:05:12]} 56. Kg2 {[%emt 0:00:19]} 1/2-1/2

[Event "1st 4NCL International U2050"]
[Site "Telford"]
[Date "2018.11.04"]
[Round "8"]
[White "Wynarczyk, Raymond"]
[Black "Bryant, Richard Be"]
[Result "1/2-1/2"]
[ECO "C18"]
[WhiteElo "1919"]
[BlackElo "1856"]
[Annotator "NA"]
[PlyCount "119"]
[EventDate "2018.10.31"]
[EventType "swiss"]
[EventCountry "GBR"]
[SourceTitle "playchess.com"]
[Source "ChessBase"]
[SourceQuality "1"]
[TimeControl "5400+30"]

1. e4 {[%emt 0:00:00]} e6 {[%emt 0:00:00]} 2. d4 {[%emt 0:00:00]} d5 {[%emt 0:00:00]} 3. Nc3 {[%emt 0:00:02]} Bb4 {[%emt 0:00:00]} 4. e5 {[%emt 0:00:11]} c5 {[%emt 0:00:13]} 5. a3 {[%emt 0:00:09]} Ba5 {[%emt 0:00:53]} 6. Bd2 {[%emt 0:00:16]} cxd4 {[%emt 0:00:31]} 7. Nb5 {[%emt 0:00:25]} Bc7 {[%emt 0:00:32]} 8. f4 {[%emt 0:02:28]} Nc6 {[%emt 0:01:24]} 9. Nf3 {[%emt 0:01:57]} Nge7 {[%emt 0:00:47]} 10. Nbxd4 {[%emt 0:02:23]} a6 {[%emt 0:01:22]} 11. Bd3 {[%emt 0:03:56]} Bd7 {[%emt 0:01:12]} 12. O-O {[%emt 0:03:52]} Bb6 {[%emt 0:01:11]} 13. Be3 {[%emt 0:01:20]} g6 {[%emt 0:01:02]} 14. Qe1 {[%emt 0:04:37]} Nxd4 {[%emt 0:06:06]} 15. Nxd4 {[%emt 0:03:32]} Nc6 {[%emt 0:03:13]} 16. Qf2 {[%emt 0:01:53]} Rc8 {[%emt 0:03:40]} 17. Nf5 {[%emt 0:04:40]} Bc7 {[%emt 0:02:50]} 18. Nd4 {[%emt 0:04:01]} Ne7 {[%emt 0:09:31]} 19. Qh4 {[%emt 0:04:22]} Nf5 {[%emt 0:03:24]} 20. Qxd8+ {[%emt 0:00:43]} Bxd8 {[%emt 0:00:28]} 21. Bxf5 {[%emt 0:01:43]} gxf5 {[%emt 0:00:35]} 22. c3 {[%emt 0:00:49]} Rg8 {[%emt 0:01:14]} 23. Rf3 {[%emt 0:01:22]} Ba4 {[%emt 0:05:46]} 24. Rh3 {[%emt 0:04:19]} Rg7 {[%emt 0:00:30]} 25. Rf1 {[%emt 0:02:03]} Be7 {[%emt 0:00:41]} 26. Rff3 {[%emt 0:01:47]} Kd7 {[%emt 0:00:28]} 27. Rfg3 {[%emt 0:00:40]} Rxg3 {[%emt 0:00:45]} 28. Rxg3 {[%emt 0:00:47]} Bf8 {[%emt 0:01:09]} 29. Rh3 {[%emt 0:02:21]} h6 {[%emt 0:00:34]} 30. Rg3 {[%emt 0:00:25]} Bd1 {[%emt 0:00:47]} 31. Rg8 {[%emt 0:02:23]} Be7 {[%emt 0:02:49]} 32. Rg7 {[%emt 0:02:10]} Bh5 {[%emt 0:01:13]} 33. Rg3 {[%emt 0:03:06]} Bg4 {[%emt 0:02:26]} 34. Bf2 {[%emt 0:02:51]} Rh8 {[%emt 0:03:13]} 35. h3 {[%emt 0:01:06]} Bh5 {[%emt 0:00:26]} 36. Rd3 {[%emt 0:02:30]} Rc8 {[%emt 0:00:53]} 37. Nb3 {[%emt 0:05:08]} Bd8 {[%emt 0:09:00]} 38. Kf1 {[%emt 0:03:38]} Kc6 {[%emt 0:07:44]} 39. Nd4+ {[%emt 0:03:00]} Kd7 {[%emt 0:00:10]} 40. Nb3 {[%emt 0:01:24]} Kc6 {[%emt 0:00:20]} 41. Nd2 {[%emt 0:00:49]} b5 {[%emt 0:03:00]} 42. Nb3 {[%emt 0:01:18]} Be7 {[%emt 0:01:05]} 43. Nd4+ {[%emt 0:02:26]} Kd7 {[%emt 0:00:39]} 44. Nc2 {[%emt 0:02:52]} a5 {[%emt 0:02:49]} 45. Ne3 {[%emt 0:01:52]} Bg6 {[%emt 0:02:04]} 46. Nc2 {[%emt 0:01:41]} Bh5 {[%emt 0:00:39]} 47. Bb6 {[%emt 0:01:39]} Ra8 {[%emt 0:01:05]} 48. Bf2 {[%emt 0:02:54]} Rb8 {[%emt 0:00:48]} 49. Ne3 {[%emt 0:01:41]} Kc6 {[%emt 0:01:37]} 50. g4 {[%emt 0:01:26]} fxg4 {[%emt 0:00:27]} 51. hxg4 {[%emt 0:00:10]} Bg6 {[%emt 0:00:20]} 52. f5 {[%emt 0:01:54]} Bh7 {[%emt 0:00:09]} 53. Nc2 {[%emt 0:02:10]} Kd7 {[%emt 0:03:23]} 54. Rf3 {[%emt 0:03:18]} h5 {[%emt 0:03:36]} 55. gxh5 {[%emt 0:00:41]} Bxf5 {[%emt 0:02:41]} 56. Nd4 {[%emt 0:00:37]} Rh8 {[%emt 0:00:36]} 57. Nxf5 {[%emt 0:01:41]} exf5 {[%emt 0:00:16]} 58. Rxf5 {[%emt 0:00:57]} Ke6 {[%emt 0:00:11]} 59. Rf4 {[%emt 0:01:04]} Rxh5 {[%emt 0:00:17]} 60. a4 {[%emt 0:00:49]} 1/2-1/2

[Event "1st 4NCL International U2050"]
[Site "Telford"]
[Date "2018.11.04"]
[Round "8"]
[White "Benson, Paul J"]
[Black "Towers, Nigel S"]
[Result "1/2-1/2"]
[ECO "D01"]
[WhiteElo "1912"]
[BlackElo "1843"]
[Annotator "NA"]
[PlyCount "33"]
[EventDate "2018.10.31"]
[EventType "swiss"]
[EventCountry "GBR"]
[SourceTitle "playchess.com"]
[Source "ChessBase"]
[SourceQuality "1"]
[TimeControl "5400+30"]

1. d4 {[%emt 0:00:14]} Nf6 {[%emt 0:00:26]} 2. Nc3 {[%emt 0:00:17]} d5 {[%emt 0:01:21]} 3. Bg5 {[%emt 0:00:31]} Bf5 {[%emt 0:07:54]} 4. f3 {[%emt 0:01:23]} Nc6 {[%emt 0:14:53]} 5. e4 {[%emt 0:05:30]} dxe4 {[%emt 0:02:07]} 6. d5 {[%emt 0:02:31]} Nb4 {[%emt 0:09:59]} 7. Bxf6 {[%emt 0:11:24]} exf6 {[%emt 0:02:08]} 8. fxe4 {[%emt 0:02:01]} Bd7 {[%emt 0:02:23]} 9. Nf3 {[%emt 0:14:38]} Bd6 {[%emt 0:07:20]} 10. a3 {[%emt 0:08:39]} Na6 {[%emt 0:00:13]} 11. Bd3 {[%emt 0:48:22]} Nc5 {[%emt 0:00:00]} 12. O-O {[%emt 0:06:36]} O-O {[%emt 0:03:33]} 13. b4 {[%emt 0:08:33]} Nxd3 {[%emt 0:01:46]} 14. Qxd3 {[%emt 0:01:01]} Qe7 {[%emt 0:06:38]} 15. Nd4 {[%emt 0:04:32]} Qe5 {[%emt 0:08:26]} 16. g3 {[%emt 0:01:19]} g6 {[%emt 0:05:42]} 17. Ncb5 {[%emt 0:05:09]} 1/2-1/2

[Event "1st 4NCL International U2050"]
[Site "Telford"]
[Date "2018.11.04"]
[Round "8"]
[White "Gostelow, David W"]
[Black "Chen, Daniel Xingyu"]
[Result "1/2-1/2"]
[ECO "D00"]
[WhiteElo "1880"]
[BlackElo "1258"]
[Annotator "NA"]
[PlyCount "51"]
[EventDate "2018.10.31"]
[EventType "swiss"]
[EventCountry "GBR"]
[SourceTitle "playchess.com"]
[Source "ChessBase"]
[SourceQuality "1"]
[TimeControl "5400+30"]

1. d4 {[%emt 0:00:00]} Nf6 {[%emt 0:00:00]} 2. Bf4 {[%emt 0:00:00]} g6 {[%emt 0:00:10]} 3. Nc3 {[%emt 0:00:00]} d5 {[%emt 0:00:22]} 4. e3 {[%emt 0:00:00]} Bg7 {[%emt 0:00:24]} 5. Be2 {[%emt 0:01:48]} a6 {[%emt 0:02:49]} 6. Nf3 {[%emt 0:02:25]} O-O {[%emt 0:01:19]} 7. Ne5 {[%emt 0:01:40]} Nbd7 {[%emt 0:02:01]} 8. O-O {[%emt 0:07:29]} e6 {[%emt 0:02:09]} 9. Bf3 {[%emt 0:05:15]} Nxe5 {[%emt 0:00:58]} 10. Bxe5 {[%emt 0:00:33]} Bd7 {[%emt 0:01:14]} 11. Re1 {[%emt 0:03:56]} Rc8 {[%emt 0:01:21]} 12. e4 {[%emt 0:02:45]} Bc6 {[%emt 0:03:51]} 13. Qe2 {[%emt 0:04:04]} dxe4 {[%emt 0:01:20]} 14. Nxe4 {[%emt 0:07:38]} Nxe4 {[%emt 0:00:43]} 15. Bxe4 {[%emt 0:01:41]} Bxe4 {[%emt 0:00:19]} 16. Qxe4 {[%emt 0:00:07]} Bxe5 {[%emt 0:00:17]} 17. dxe5 {[%emt 0:01:21]} Qd5 {[%emt 0:00:54]} 18. Qxd5 {[%emt 0:12:54]} exd5 {[%emt 0:00:07]} 19. Rad1 {[%emt 0:00:13]} c6 {[%emt 0:00:22]} 20. Rd3 {[%emt 0:00:14]} Rc7 {[%emt 0:00:15]} 21. f4 {[%emt 0:04:07]} Re8 {[%emt 0:00:37]} 22. Kf2 {[%emt 0:00:16]} Kf8 {[%emt 0:00:08]} 23. g4 {[%emt 0:00:20]} Rce7 {[%emt 0:00:11]} 24. Ree3 {[%emt 0:02:47]} Kg8 {[%emt 0:00:33]} 25. h4 {[%emt 0:01:00]} h6 {[%emt 0:00:36]} 26. g5 {[%emt 0:04:14]} 1/2-1/2

[Event "1st 4NCL International U2050"]
[Site "Telford"]
[Date "2018.11.04"]
[Round "8"]
[White "Hughes, Peter"]
[Black "Gogia, Armaan"]
[Result "1/2-1/2"]
[ECO "A69"]
[WhiteElo "1854"]
[BlackElo "1808"]
[Annotator "NA"]
[PlyCount "38"]
[EventDate "2018.10.31"]
[EventType "swiss"]
[EventCountry "GBR"]
[SourceTitle "playchess.com"]
[Source "ChessBase"]
[SourceQuality "1"]
[TimeControl "5400+30"]

1. d4 {[%emt 0:00:00]} Nf6 {[%emt 0:00:00]} 2. c4 {[%emt 0:00:00]} g6 {[%emt 0:00:00]} 3. Nc3 {[%emt 0:00:00]} Bg7 {[%emt 0:00:00]} 4. e4 {[%emt 0:00:00]} d6 {[%emt 0:00:00]} 5. f4 {[%emt 0:00:05]} O-O {[%emt 0:00:23]} 6. Nf3 {[%emt 0:00:12]} c5 {[%emt 0:00:23]} 7. d5 {[%emt 0:00:12]} e6 {[%emt 0:01:07]} 8. Be2 {[%emt 0:00:18]} exd5 {[%emt 0:00:22]} 9. cxd5 {[%emt 0:00:08]} Re8 {[%emt 0:01:14]} 10. e5 {[%emt 0:00:31]} dxe5 {[%emt 0:04:34]} 11. fxe5 {[%emt 0:00:14]} Ng4 {[%emt 0:00:29]} 12. e6 {[%emt 0:00:45]} fxe6 {[%emt 0:01:37]} 13. d6 {[%emt 0:00:10]} Nc6 {[%emt 0:06:45]} 14. O-O {[%emt 0:01:13]} Nd4 {[%emt 0:05:41]} 15. Ne4 {[%emt 0:05:06]} Nxf3+ {[%emt 0:02:25]} 16. Bxf3 {[%emt 0:02:49]} Bd4+ {[%emt 0:21:59]} 17. Kh1 {[%emt 0:00:44]} Nf6 {[%emt 0:10:01]} 18. Bg5 {[%emt 0:10:57]} Rf8 {[%emt 0:03:15]} 19. Bxf6 {[%emt 0:20:57]} Bxf6 {[%emt 0:00:03]} 1/2-1/2

[Event "1st 4NCL International U2050"]
[Site "Telford"]
[Date "2018.11.04"]
[Round "8"]
[White "Zdanowski, Adrian"]
[Black "Ansari, Mohd Athar Dr"]
[Result "1-0"]
[ECO "E06"]
[WhiteElo "1845"]
[BlackElo "2188"]
[Annotator "NA"]
[PlyCount "71"]
[EventDate "2018.10.31"]
[EventType "swiss"]
[EventCountry "GBR"]
[SourceTitle "playchess.com"]
[Source "ChessBase"]
[SourceQuality "1"]
[TimeControl "5400+30"]

1. Nf3 {[%emt 0:00:00]} Nf6 {[%emt 0:01:13]} 2. c4 {[%emt 0:00:28]} e6 {[%emt 0:00:00]} 3. Nc3 {[%emt 0:01:43]} d5 {[%emt 0:00:00]} 4. cxd5 {[%emt 0:00:57]} exd5 {[%emt 0:00:00]} 5. d4 {[%emt 0:00:14]} Be7 {[%emt 0:03:00]} 6. g3 {[%emt 0:00:30]} O-O {[%emt 0:01:42]} 7. Bg2 {[%emt 0:00:08]} c6 {[%emt 0:02:07]} 8. O-O {[%emt 0:00:16]} Bg4 {[%emt 0:01:01]} 9. Ne5 {[%emt 0:02:19]} Qc8 {[%emt 0:01:14]} 10. Nxg4 {[%emt 0:01:30]} Qxg4 {[%emt 0:01:00]} 11. e3 {[%emt 0:04:32]} Qxd1 {[%emt 0:03:37]} 12. Rxd1 {[%emt 0:00:03]} Nbd7 {[%emt 0:01:21]} 13. a3 {[%emt 0:01:05]} a5 {[%emt 0:00:13]} 14. a4 {[%emt 0:03:01]} Bb4 {[%emt 0:00:56]} 15. Bd2 {[%emt 0:02:41]} Rfe8 {[%emt 0:02:44]} 16. Ne2 {[%emt 0:03:54]} Bd6 {[%emt 0:00:10]} 17. Nc3 {[%emt 0:02:23]} Ne4 {[%emt 0:00:19]} 18. Nxe4 {[%emt 0:03:04]} dxe4 {[%emt 0:00:11]} 19. Bc3 {[%emt 0:06:35]} Nb6 {[%emt 0:01:34]} 20. b3 {[%emt 0:00:29]} Nd5 {[%emt 0:01:11]} 21. Bb2 {[%emt 0:01:12]} Ra6 {[%emt 0:00:44]} 22. Ba3 {[%emt 0:00:53]} Bxa3 {[%emt 0:01:35]} 23. Rxa3 {[%emt 0:00:11]} Nc3 {[%emt 0:00:39]} 24. Re1 {[%emt 0:01:00]} Rb6 {[%emt 0:01:53]} 25. Bf1 {[%emt 0:00:50]} Rb4 {[%emt 0:01:17]} 26. Rc1 {[%emt 0:01:14]} Nd5 {[%emt 0:00:19]} 27. Bc4 {[%emt 0:00:18]} Ne7 {[%emt 0:01:43]} 28. Be2 {[%emt 0:00:25]} Rc8 {[%emt 0:01:19]} 29. Rc5 {[%emt 0:01:31]} b6 {[%emt 0:02:02]} 30. Re5 {[%emt 0:01:56]} Nd5 {[%emt 0:02:42]} 31. Bc4 {[%emt 0:02:02]} Nc3 {[%emt 0:04:05]} 32. Re7 {[%emt 0:00:21]} b5 {[%emt 0:06:40]} 33. Bxf7+ {[%emt 0:01:29]} Kf8 {[%emt 0:00:14]} 34. Ra7 {[%emt 0:00:08]} bxa4 {[%emt 0:01:55]} 35. bxa4 {[%emt 0:03:03]} c5 {[%emt 0:01:57]} 36. Rxc3 {[%emt 0:00:41] Ke8 [%clk 00:53:40] [%emt 00:01:12]} 1-0